Cogmind - Beta 11.1 @@@ ROGUE MODE // 2022.09.20 @ 22:45:38 Player: DuckBoy Result: Destroyed by G-47 Trooper with Particle Gun Performance ------------- Evolutions (2) 1000 Regions Visited (3) 600 Robots Destroyed (84) 420 Value Destroyed (2136) 2136 Prototype IDs (3) 60 Alien Tech Used (0) 0 Bonus (908) 908 TOTAL SCORE: 5124 Bonus ------- High Alert Combat Kills 908 Cogmind --------- Core Integrity 0/550 Matter 194/300 Energy 100/100 System Corruption 0% Temperature Cool (9) Movement Core (50) Location -8/Materials Parts ------- > --- POWER (1) -------- (None) > --- PROPULSION (2) --- (None) > --- UTILITY (5) ------ (None) > --- WEAPON (3) ------- (None) > --- INVENTORY (5) ---- Heat Sink Heat Sink Heat Sink High-capacity Matter Pod (200) Assault Cannon Peak State ------------ > --- POWER ------------ Heavy Ion Engine > --- PROPULSION ------- Armored Wheel Armored Wheel > --- UTILITY ---------- Improved Heat Sink Small Storage Unit Transport Network Coupler Hardened Light Armor Plating Reactive Plating > --- WEAPON ----------- Beam Rifle Minigun Mace > --- INVENTORY -------- Heat Sink Heat Sink Heat Sink High-capacity Matter Pod Reactive Plating [Rating: 24] Favorites ----------- Power Ion Engine Engine Ion Engine Propulsion Wheel Leg Aluminum Leg Wheel Wheel Utility Transport Network Coupler Device Seismic Detector Storage Small Storage Unit Processor Transport Network Coupler Protection Hardened Light Armor Plating Weapon Improved Assault Rifle Energy Gun Improved EM Shotgun Ballistic Gun Improved Assault Rifle Ballistic Cannon Assault Cannon Launcher Grenade Launcher Impact Weapon Mace Build | -11 -10 -9 -8 ------- Run | Scr Mat Mat Mat Slots Evolved 4 | . . 2 2 Power . | . . . . Propulsion . | . . . . Utility 3 | . . 1 2 Weapon 1 | . . 1 . Parts Attached 54 | 7 5 33 9 Power 7 | 1 2 3 1 Engine 7 | 1 2 3 1 Core . | . . . . Reactor . | . . . . Propulsion 8 | 2 . 6 . Treads . | . . . . Leg 2 | . . 2 . Wheel 6 | 2 . 4 . Hover . | . . . . Flight . | . . . . Utility 22 | 2 2 13 5 Device 3 | 1 . 1 1 Storage 4 | 1 1 1 1 Processor 1 | . 1 . . Hackware . | . . . . Protection 14 | . . 11 3 Artifact . | . . . . Weapon 17 | 2 1 11 3 Energy Gun 6 | 1 . 5 . Energy Cannon . | . . . . Ballistic Gun 7 | 1 . 5 1 Ballistic Cannon 1 | . . . 1 Launcher 2 | . 1 1 . Special Weapon . | . . . . Impact Weapon 1 | . . . 1 Slashing Weapon . | . . . . Piercing Weapon . | . . . . Special Melee Weapon . | . . . . Unidentified Prototypes 3 | . . 3 . Parts Lost 17 | . . 8 9 Power 1 | . . . 1 Propulsion 4 | . . 2 2 Utility 6 | . . 3 3 Weapon 6 | . . 3 3 Highest Loss Streak 7 | . . 2 7 To Critical Strikes . | . . . . Average Slot Usage (%) 91 | . 100 92 65 Engine 11 | . 14 11 4 Leg 3 | . . 6 . Wheel 17 | . 28 12 11 Device 6 | . 14 2 6 Storage 3 | . 8 . 6 Processor 8 | . 5 11 6 Protection 11 | . . 18 12 Energy Gun 5 | . . 8 7 Ballistic Gun 14 | . 14 17 4 Launcher 6 | . 13 4 . Naked Turns 32 | . . . 32 Heaviest Build 38 | 13 20 37 38 Greatest Support 24 | 20 20 24 24 Greatest Overweight (x) 6 | . . 6 3 Average Overweight (x) . | . . . . Largest Inventory Capacity 10 | 8 10 5 8 Average Capacity 6 | 7 7 5 7 Most Carried 10 | 2 10 5 5 Average Carried 4 | . 5 4 4 Final Capacity 8 | 8 5 5 5 Final Carried 5 | 2 5 4 5 Class Distribution -------------------- 67% | Mutant 18% | Scavenger-Mutant 13% | Tank Dominant Class ---------------- Mutant | -10/Materials Mutant | -9/Materials Mutant | -8/Materials Resources | -11 -10 -9 -8 ----------- Run | Scr Mat Mat Mat Matter Collected 1961 | 278 249 1371 63 Remotely . | . . . . Salvage Created 2456 | 138 291 1766 261 Parts 152 | 9 22 112 9 Haulers Intercepted 5 | . 2 3 . Recyclers Shooed 1 | . . 1 . Parts Field Recycled . | . . . . Retrieved Matter . | . . . . Parts Self-Destructed . | . . . . Prevented . | . . . . Kills | -11 -10 -9 -8 ------- Run | Scr Mat Mat Mat Combat Hostiles Destroyed 50 | . 6 39 5 Melee 2 | . . 1 1 Guns 28 | . 1 24 3 AOE 19 | . 5 14 . Classes Destroyed 14 | 2 6 6 . Worker 5 | . 1 4 . Builder 3 | . 1 2 . Tunneler 5 | 3 1 1 . Hauler 5 | . 2 3 . Recycler 7 | 1 1 5 . Mechanic 1 | . . 1 . Operator 2 | . 2 . . Watcher 6 | . 2 4 . Swarmer 12 | . . 12 . Grunt 30 | . 6 20 4 Brawler 1 | . . 1 . Duelist 2 | . . 1 1 Protector 1 | . . 1 . Sentry 4 | . . 4 . Best Kill Streak 13 | 4 4 13 2 Combat Bots Only 10 | . 3 10 2 Max Kills in Single Turn 5 | 1 2 5 1 Gunslinging 1 | . . 1 . Exploded 4 | . 1 4 . Melee 1 | . . 1 1 Uniques/NPCs Destroyed . | . . . . Combat | -11 -10 -9 -8 -------- Run | Scr Mat Mat Mat Damage Taken 3504 | . 202 1685 1617 Core 836 | . 46 233 557 Absorbed by Shields . | . . . . Core Remaining (%) 74 | 100 81 41 . Volleys Fired 192 | 8 73 83 28 Largest 3 | 2 2 3 3 Hottest 124 | 60 50 124 124 Shots Fired 327 | 16 82 184 45 Gun 255 | 16 36 170 33 Cannon 12 | . . . 12 Launcher 60 | . 46 14 . Special . | . . . . Kinetic 194 | 8 36 122 28 Thermal 43 | 8 . 19 16 Explosive 60 | . 46 14 . Electromagnetic 30 | . . 29 1 Robot Hit Streak 16 | 12 14 12 16 Robot Miss Streak 4 | . 3 4 2 Penetration Max . | . . . . Secondary Targets 11 | . . 10 1 Max Gunslinging Chain 1 | . . 1 1 Shots Hit Robots 209 | 12 28 128 41 Core Hits 145 | 5 30 97 13 Critical Kills . | . . . . Critical Parts Destroyed 5 | . 1 1 3 Critical Strikes 5 | . 1 1 3 Destroy 3 | . 1 1 1 Smash 2 | . . . 2 Melee Attacks 17 | . . . 17 Impact 17 | . . . 17 Slashing . | . . . . Piercing . | . . . . Sneak Attacks . | . . . . Combat Hostiles . | . . . . Follow-up Attacks . | . . . . Damage Inflicted 6007 | 115 1172 3846 874 Guns 2510 | 115 184 1813 398 Cannons 71 | . . . 71 Explosions 2993 | . 988 2005 . Melee 402 | . . . 402 Ramming 31 | . . 28 3 Kinetic 1799 | 36 184 1291 288 Thermal 679 | 79 . 442 158 Explosive 2722 | . 988 1734 . Electromagnetic 374 | . . 351 23 Impact 402 | . . . 402 Slashing . | . . . . Piercing . | . . . . Highest Corruption 4 | . . 4 . Average Corruption 3 | . . 3 . Corruption Purged . | . . . . Corruption Blocked . | . . . . Effects 22 | . . 22 . Message Errors 8 | . . 8 . Matter Fused 5 | . . 5 . Heat Flow Errors 1 | . . 1 . Energy Discharges 1 | . . 1 . Data Loss (minor) 2 | . . 2 . Misfires 1 | . . 1 . Alerts 1 | . . 1 . Weapon Failures 3 | . . 3 . Overload Shots . | . . . . Overflow Damage 178 | . 13 96 69 Projectiles . | . . . . Explosions 109 | . 13 96 . Melee 69 | . . . 69 Knockbacks 5 | . . . 5 Impact 2 | . . . 2 Kinetic 3 | . . . 3 Secondary . | . . . . Self-Inflicted Damage 399 | . 56 342 1 Shots 11 | . 4 7 . Rammed 16 | . . 13 3 Targets Rammed 16 | . . 13 3 Kicked . | . . . . Crushed . | . . . . Highest Temperature 418 | 40 15 418 73 Average Temperature 95 | 17 7 115 23 Received Heat Transfer 1386 | . 78 543 765 Effects 6 | . . 6 . Shutdowns 1 | . . 1 . Energy Bleed 2 | . . 2 . Matter Decay 3 | . . 3 . Siege Activations . | . . . . Robots Corrupted . | . . . . Combat Hostiles . | . . . . Parts Fried 3 | . . . 3 Impact Corruptions 2 | . . . 2 Robots Melted . | . . . . Combat Hostiles . | . . . . Parts Melted 1 | . . 1 . Heat Transferred 1153 | 175 . 571 407 Parts Sabotaged . | . . . . Parts Stolen . | . . . . Parts Stripped . | . . . . Power Chain Reactions 4 | . 1 3 . Missiles Intercepted . | . . . . Alert | -11 -10 -9 -8 ------- Run | Scr Mat Mat Mat Peak Influence 1918 | 20 1005 1918 924 Initial 809 | . 13 424 809 Average 872 | 6 487 1156 868 Maximum Alert Level 5 | . 3 5 3 Low Security (%) 9 | 100 18 . . Level 1 6 | . 19 . . Level 2 22 | . 45 15 . Level 3 29 | . 16 21 100 Level 4 28 | . . 53 . Level 5 5 | . . 9 . High Security . | . . . . Max Security . | . . . . Squads Dispatched 10 | . 2 7 1 Investigation 5 | . . 4 1 Extermination . | . . . . Reinforcement 3 | . 2 1 . Assault 2 | . . 2 . Garrison . | . . . . Intercept . | . . . . Searches Triggered . | . . . . Construction Impeded . | . . . . Haulers Reinforced . | . . . . Active Scanning Responses . | . . . . Cargo Convoy Interrupts . | . . . . Stealth | -11 -10 -9 -8 --------- Run | Scr Mat Mat Mat Distress Signals 4 | . . 3 1 Communications Jammed . | . . . . Distress Signals . | . . . . Times Spotted 84 | . 12 51 21 Peak Tracking Total 13 | . 2 13 11 Tactical Retreats 1 | . . . 1 Traps | -11 -10 -9 -8 ------- Run | Scr Mat Mat Mat Traps Triggered 1 | . . 1 . Indirectly . | . . . . Trap Hack Attempts . | . . . . Triggered . | . . . . Disarmed . | . . . . Reprogrammed . | . . . . Reused . | . . . . Traps Extracted . | . . . . Installed . | . . . . Triggered . | . . . . Machines | -11 -10 -9 -8 ---------- Run | Scr Mat Mat Mat Machines Disabled 23 | . 11 11 1 Max in Single Turn 2 | . 2 2 1 Machines Sabotaged 1 | . . 1 . Garrisons Compromised . | . . . . Overloaded Fab Kills . | . . . . Hacking | -11 -10 -9 -8 --------- Run | Scr Mat Mat Mat Machines Accessed 7 | . 1 5 1 Terminals 6 | . 1 4 1 Fabricators . | . . . . Repair Stations . | . . . . Recycling Units . | . . . . Scanalyzers 1 | . . 1 . Garrison Access . | . . . . Total Hacks 26 | . 2 17 7 Successful 15 | . 2 12 1 Failed 11 | . . 5 6 Catastrophic 1 | . . . 1 Database Lockouts . | . . . . Manual 10 | . . 4 6 Terminals 21 | . 2 12 7 Fabricators . | . . . . Repair Stations . | . . . . Recycling Units . | . . . . Scanalyzers 5 | . . 5 . Garrison Access . | . . . . Terminal Hacks 8 | . 2 5 1 Record 1 | . . 1 . Branch Access Points 1 | . . 1 . Alert Level 3 | . . 2 1 Locate Traps 1 | . . 1 . Transport Status 1 | . 1 . . Hauler Manifests 1 | . 1 . . Fabricator Hacks . | . . . . Repair Station Hacks . | . . . . Recycling Unit Hacks . | . . . . Scanalyzer 5 | . . 5 . Insert Component 3 | . . 3 . Analyze 2 | . . 2 . Garrison Access Hacks . | . . . . Unauthorized Hacks 2 | . . 2 . Terminals 2 | . . 2 . Sabotage 2 | . . 2 . Fabricators . | . . . . Repair Stations . | . . . . Recycling Units . | . . . . Scanalyzers . | . . . . Garrison Access . | . . . . Data Cores Recovered . | . . . . Used . | . . . . Hacking Detections 4 | . . 3 1 Full Trace Events 4 | . . 3 1 Feedback Events . | . . . . Feedback Blocked . | . . . . Robot Schematics Acquired . | . . . . Robots Built . | . . . . Authchips . | . . . . Time . | . . . . Total Robot Build Rating . | . . . . Part Schematics Acquired 2 | . . 2 . Parts Built . | . . . . Authchips . | . . . . Time . | . . . . Total Part Build Rating . | . . . . Parts Repaired . | . . . . Time . | . . . . Parts Recycled . | . . . . Recycled Matter . | . . . . Retrieved Matter . | . . . . Retrieved Components . | . . . . Parts Scanalyzed 2 | . . 2 . Part Schematics Acquired 2 | . . 2 . Parts Damaged . | . . . . Bothacking | -11 -10 -9 -8 ------------ Run | Scr Mat Mat Mat Used RIF Installer . | . . . . Robots Hacked . | . . . . Non-combat . | . . . . Combat . | . . . . Robot Hacks Applied . | . . . . Relay Couplers Released . | . . . . Fabnet Peak Effective % . | . . . . Robots Rewired . | . . . . Allies Hacked . | . . . . Hacks Repelled . | . . . . Allies | -11 -10 -9 -8 -------- Run | Scr Mat Mat Mat Total Allies . | . . . . Largest Group . | . . . . Highest-Rated Group . | . . . . Highest-Rated Ally . | . . . . Total Orders . | . . . . Ally Attacks . | . . . . Total Damage . | . . . . Kills . | . . . . Allies Corrupted . | . . . . Allies Melted . | . . . . Intel | -11 -10 -9 -8 ------- Run | Scr Mat Mat Mat Robot Analysis Total . | . . . . Derelict Logs Recovered . | . . . . Drone Launches . | . . . . Drone Recoveries . | . . . . Exploration | -11 -10 -9 -8 ------------- Run | Scr Mat Mat Mat Turns Passed 2100 | 70 655 1106 269 Spaces Moved 1414 | 40 576 657 141 Core 65 | 1 . 4 60 Treads . | . . . . Legs 159 | . . 159 . Wheels 1190 | 39 576 494 81 Hover . | . . . . Flight . | . . . . Fastest Speed 50 | 50 80 80 50 Average Speed 96 | 79 80 113 86 Slowest Speed 350 | 80 80 350 150 Overloaded Moves . | . . . . Propulsion Burnouts . | . . . . Robots Hopped . | . . . . Cave-ins Triggered . | . . . . Exploration Rate (%) 36 | 5 77 48 14 Regions Visited 3 Branch Regions . Pre-discovered Areas . | . . . . Known Exits Taken . | . . . . Unknown Exits Taken 3 | 1 1 1 . Scrap Searched . | . . . . Spaces Dug 15 | . 13 . 2 Terrain Destroyed 467 | . 271 191 5 Melee . | . . . . Projectile 5 | . . . 5 AOE 462 | . 271 191 . Terrain Rammed . | . . . . Walls Destroyed . | . . . . Machines Disabled . | . . . . Actions | -11 -10 -9 -8 --------- Run | Scr Mat Mat Mat Total 1830 | 60 700 856 214 Wait 77 | 4 27 32 14 Move 1411 | 39 575 656 141 Hop . | . . . . Pick Up 26 | 2 12 11 1 Fast Attach 36 | 7 1 22 6 Attach 6 | . . 4 2 Detach 2 | . . 1 1 Swap 12 | . 4 7 1 Drop 35 | . 8 27 . Fire 192 | 8 73 83 28 Melee 17 | . . . 17 Ram 16 | . . 13 3 Kick . | . . . . Crush . | . . . . Escape Stasis . | . . . . Rewire . | . . . . Trap . | . . . . Miscellaneous . | . . . . Route ------- -11/Scrapyard -10/Materials (discovered 3 exits: *Mat x2 / [*Min]) -9/Materials (discovered 4 exits: *Mat x2 / *Min x2) -8/Materials History --------- Turn | Location | Event 14 | -11/Scrapyard | Discovered new exit (range 15) 71 | -11/Scrapyard | Entered Materials 143 | -10/Materials | Discovered new exit (range 8) 297 | -10/Materials | Discovered new exit (range 13) 311 | -10/Materials | Build established: Mutant 341 | -10/Materials | Discovered new exit (range 15) 726 | -10/Materials | Entered another Materials area 726 | -9/Materials | Evolved 2 slots: Utility x1, Weapon x1 844 | -9/Materials | Identified exit to Mines 948 | -9/Materials | Discovered new exit (range 13) 1098 | -9/Materials | Destroyed 7 combat bots 1126 | -9/Materials | First assault squad dispatched 1234 | -9/Materials | Destroyed 10 combat bots 1316 | -9/Materials | Discovered new exit (range 16) 1636 | -9/Materials | Core integrity fell below 50% 1832 | -9/Materials | Entered another Materials area 1832 | -8/Materials | Evolved 2 slots: Utility x2 2034 | -8/Materials | Released all parts (4) 2035 | -8/Materials | Core integrity fell below 50% 2059 | -8/Materials | Lost 7 parts (1p2n3u1w) 2094 | -8/Materials | Core integrity fell below 20% 2101 | -8/Materials | Destroyed by G-47 Trooper with Particle Gun Last Messages --------------- 02029_ K-01 Serf collects debris. 02030_ Acquired Reactive Plating. 02033_ K-01 Serf collects debris. 02034_ R-06 Scavenger collects Melee Analysis Suite. 02034_ Released Transport Network Coupler. 02034_ Released Sml. Storage Unit. 02034_ Released Mace. 02034_ Released Reactive Plating. 02048_ Connecting with Terminal... 02048_ Current location identified: Materials >>Alert(Check) Current Alert Level: 3-M 02048_ ALERT: Suspicious activity at Terminal M010. Dispatching Investigation squad. 02049_ K-01 Serf collects debris. 02061_ Acquired Assault Cannon. 02084_ G-47 Trooper knocked back. 02095_ Acquired 4 matter. 02096_ G-47 Trooper destroyed. 02098_ Slammed into G-47 Trooper. Map ----- +----------------------------------------------------+ | ?????????????????????????????????????????????????? | | ????????????????????????????????? ???????????????? | | ????????????????????????????????? ???????????????? | | ????????????????????????????????? ???????????????? | | ????????????????????????????????# ???????????????? | | ????????????????????????????????# #??????????????? | | ????????????????????????????????#%#??????????????? | | ??????????????????????????????###/####??#????????? | | ??????????????????????????????# ## ?????????? | | ??????????????????????????????# """ + ??????????? | | ??????????????????????????????# "" #???????????? | | ??????????????????????????##### "= #???????????? | | ??????????????????????????# /!%! ! #???????????? | | ??????????????????????????????#/![%%=#??#????????? | | ????????????????????######????####/#### ### """??? | | ???????????????????##% #????# =% + """??? | | ??????????????????##; #????# *###### # | | ????????????########; ## #?# #???????????? | | ????????????# #%g #? # #???????????? | | ????????????# "#g ####+# #???????????? | | ????????????# "" ## g # w #???????????? | | ????????????# S"" ## # ########????? | | ????????????# "" ## # # #????? | | ????????##### ## # # ! #????? | | ????????# ##+#########g#k # !% #????? | | ????????# T w g gg @ + #????? | | ????????# ##############k##### # #????? | | ????????## ##????????????? ??# # #????? | | ?????????# #??????????????? !!?### ##########????? | | ?????????# #??????????????? !! ??# #?????????????? | | ?????????# #???????????????? #?# #?????????????? | | ?????????# #???????????????? #?# #?????????????? | | ????????? #??????????????########/##????????????? | | ?????????###??????????????# #????????????? | | ??????????????????????????# """ !#????????????? | | ??????????????????????????# """ #????????????? | | ??????????????????????????# """ [ /#????????????? | | ??????????????????????????# """ [ #????????????? | | ??????????????????????????# """ [/ #????????????? | | ??????????????????????????# =!= #????????????? | | ??????????????????????????# * %* #????????????? | | ??????????????????????###########+################ | | ?????????????????? %% | | ?????????????????? | | ?????????????????? | | ???????????????????######################### | | ???????????????????????????????????????????# ! | | ???????????????????????????????????????????#! ! | | ???????????????????????????????????????????##!!!!# | | ????????????????????????????????????????????###### | +----------------------------------------------------+ Best States ------------- Heat Dissipation 45 Energy Generation 14 Energy Capacity 280 Matter Stores 300 Matter Capacity 300 Sight Range 16 Terrain Scan Density 10 Armor Coverage 300 Resistance: KI 20 Evasion (%) 55 Item Schematics ----------------- Heat Sink | -9/Materials | Scanalyzed Hcp. Matter Pod | -9/Materials | Scanalyzed Robot Schematics ------------------ None Fabricated ------------ Nothing Alien Tech Used ----------------- None Achievements -------------- None Challenges ------------ None Game ------ Seed LobotomyGravmagCycler Manual? 0 Play Time 00:30:41 Cumulative 124.5 hours Start 2022.09.20 @ 22:18:35 End 2022.09.20 @ 22:45:38 Sessions 1 Manual Loads 0 Difficulty Rogue Special Mode None Game No. 100 Rogue 97 Adventurer 3 Explorer 0 Win Type - Total 1 Types 1/0/0/0/0/0/0/0/0 Lore% 53 Gallery% 51 Achievement% 46 Wizard Run 0 Options --------- ASCII 0 Keyboard 0 Movement Numpad Keybinds 0 Fullscreen 1 Font 18/SmallcapsGlow Map View 76x50 Tactical HUD 1 Map Filters NONE Filters NONE Steam 1 RUN: 93e16487-96d8-4aea-91d5-25e688c3a1ca